[Event "Club Ajedrez Silla 60 Years 2022"]
[Site "Silla"]
[Date "2022.05.12"]
[Round "8.1"]
[White "Kotronias, Vasilios"]
[Black "Salvador Lopez, Daniel"]
[Result "1-0"]
[ECO "B12"]
[WhiteElo "2465"]
[BlackElo "2134"]
[Annotator "TA"]
[PlyCount "37"]
[EventDate "2022.05.09"]
[EventType "tourn"]
[EventCountry "ESP"]
[SourceTitle "playchess.com"]
[Source "ChessBase"]
[SourceQuality "1"]
[TimeControl "5400+30"]

{[%evp 11,37,3,10,5,22,31,29,22,34,14,27,10,48,51,116,96,117,104,199,191,248,162,470,460,704,674,616,591]} 1. e4 {[%emt 0:00:08][%cal Be2e4,Be4e5][%mdl 32]} c6 {[%emt 0:00:35]} 2. d4 {[%emt 0:00:06]} d5 {[%emt 0:00:05]} 3. e5 {[%emt 0:00:03]} Bf5 {[%emt 0:00:18]} 4. h4 {[%emt 0:00:04]} h5 {[%emt 0:00:13]} 5. Bd3 {[%emt 0:00:07]} Bxd3 {[%emt 0:00:13]} 6. Qxd3 {[%emt 0:00:04]} e6 {[%emt 0:00:10]} 7. Bg5 {[%emt 0:00:05] B12: Caro-Kann: Advance Variation.} Qa5+ {[%emt 0:01:21]} 8. Nd2 {[%emt 0:01:32]} Qa6 {[%emt 0:00:21]} 9. c4 {[%emt 0:02:01] White has an edge.} Bb4 {[%emt 0:01:19]} 10. b3 {[%emt 0:00:05]} Ne7 {[%emt 0:02:38]} 11. Ne2 {[%emt 0:02:58]} Nd7 {[%emt 0:01:06]} 12. O-O {[%emt 0:00:42]} Bxd2 {[%emt 0:01:50]} (12... f6 $14) 13. Bxe7 $16 {[%emt 0:01:46]} ({Much less strong is} 13. Qxd2 dxc4 14. Bxe7 (14. Qb4 c5 $15) 14... Kxe7 $14) 13... Kxe7 {[%emt 0:06:14]} 14. Qxd2 {[%emt 0:00:06] [#]} Rag8 $146 {[%emt 0:02:53]} (14... dxc4 $16 15. bxc4 Kf8) ({Predecessor:} 14... dxc4 15. bxc4 Qxc4 16. Rfc1 Qa6 17. Ng3 f5 18. Qg5+ Kf7 19. Nxf5 exf5 20. e6+ Kg8 21. exd7 Qa5 22. Re1 {1-0 (22) Ortiz Suarez,I (2531)-Miranda Mesa,E (2475) Santa Clara 2022}) 15. Rfc1 {[%emt 0:05:50]} Qb6 {[%emt 0:03:01]} (15... Re8 $142 16. cxd5 exd5 17. Qg5+ Kf8) 16. a4 {[%emt 0:01:02][%cal Ba2a4,Ba4a5][%mdl 32] [#] And now cxd5 would win.} f6 $2 {[%emt 0:02:18]} (16... dxc4 {is more resistant.} 17. bxc4 Qc7) 17. a5 $18 {[%emt 0:02:51] White is clearly winning.} Qc7 {[%emt 0:02:37]} (17... Qd8 $142 18. Qb4+ Kf7 19. cxd5 cxd5 20. Qxb7 Re8 21. exf6 gxf6 22. Qxa7 Re7) 18. cxd5 {[%emt 0:00:12]} exd5 {[%emt 0:01:22]} 19. Nf4 {[%emt 0:00:15] White took control after the opening.  Weighted Error Value: White=0.07 (flawless) /Black=0.67} 1-0

[Event "Club Ajedrez Silla 60 Years 2022"]
[Site "Silla"]
[Date "2022.05.12"]
[Round "8.2"]
[White "Krasteva, Beloslava"]
[Black "Petrov, Marian"]
[Result "1-0"]
[ECO "A41"]
[WhiteElo "2268"]
[BlackElo "2456"]
[Annotator "TA"]
[PlyCount "63"]
[EventDate "2022.05.09"]
[EventType "tourn"]
[EventCountry "ESP"]
[SourceTitle "playchess.com"]
[Source "ChessBase"]
[SourceQuality "1"]
[TimeControl "5400+30"]

{[%evp 9,63,28,25,24,20,32,85,61,68,71,91,109,107,89,93,93,98,85,95,81,100,99,102,44,113,116,145,97,402,390,416,364,745,738,652,575,916,747,1189,1168,1103,1008,991,897,886,846,1866,1968,1744,385,940,395,29982,1368,966,756]} 1. d4 {[%emt 0:01:20][%cal Bd2d4,Bd4d5][%mdl 32]} d6 {[%emt 0:00:46]} 2. c4 {[%emt 0:01:07]} e5 {[%emt 0:00:08]} 3. d5 {[%emt 0:00:05]} Be7 {[%emt 0:01:24]} 4. Nc3 {[%emt 0:00:20]} a5 {[%emt 0:00:52]} 5. Nf3 {[%emt 0:02:49]} Na6 {[%emt 0:02:03]} 6. e4 {[%emt 0:01:08] A41: 1 d4 d6: Tartakower System and Modern Defence.} Nc5 {[%emt 0:04:52]} 7. Be3 {[%emt 0:02:34]} Bg4 {[%emt 0:00:56] [#]} ({Black should try} 7... b6 $14) 8. Be2 $146 {[%emt 0:01:06][%cal Bf1e2,Be2f3,Bf3g4][%mdl 32] White is better.} ({Predecessor:} 8. Bxc5 dxc5 9. Qa4+ Bd7 10. Qc2 Bf6 11. O-O-O Ne7 12. Ne1 O-O 13. Nd3 b6 14. g3 {1-0 (56) Avrukh,B (2500)-Tischbierek,R (2500) Budapest 1996}) 8... Bxf3 {[%emt 0:00:22]} 9. Bxf3 {[%emt 0:00:06]} Bg5 {[%emt 0:00:12]} 10. Bxc5 {[%emt 0:02:00]} dxc5 {[%emt 0:00:19]} 11. g3 {[%emt 0:02:55]} Ne7 {[%emt 0:02:39]} 12. h4 {[%emt 0:01:41]} Bh6 {[%emt 0:01:03]} 13. Bg4 {[%emt 0:01:01]} O-O {[%emt 0:01:29]} 14. Qc2 {[%emt 0:02:23]} g6 {[%emt 0:09:39]} 15. h5 {[%emt 0:01:56]} Kg7 {[%emt 0:00:09]} 16. hxg6 {[%emt 0:06:15]} (16. Qe2 $16) 16... fxg6 {[%emt 0:03:32]} (16... hxg6 $14 17. Rd1 Rh8) 17. Nb5 $16 {[%emt 0:05:10][%cal Of2f4] Threatens to win with f4!} Ng8 {[%emt 0:25:13]} 18. Qc3 {[%emt 0:01:04] White is more active.} ({White should play} 18. Be6) 18... Qg5 $2 {[%emt 0:11:05][%mdl 8192] Black cannot hold the game after this.} (18... c6 $16 {is more resistant.}) 19. Nxc7 $18 {[%emt 0:13:37] Black must now prevent Ne6+.} Qxg4 {[%emt 0:00:23]} 20. Qxe5+ {[%emt 0:00:07]} Rf6 $2 {[%emt 0:08:05]} (20... Nf6 21. Ne6+ (21. Nxa8 Qf3 $16) 21... Kg8 22. Rxh6 Nh5 23. Nxf8 Rxf8) 21. Nxa8 {[%emt 0:03:33]} Qf3 {[%emt 0:00:11]} 22. O-O {[%emt 0:01:45]} Bd2 {[%emt 0:05:13]} 23. Rad1 {[%emt 0:04:48]} Nh6 {[%emt 0:01:08]} 24. Rxd2 {[%emt 0:01:17] Hoping for Nc7.} Nf7 {[%emt 0:00:14]} 25. Qe7 {[%emt 0:03:14]} g5 {[%emt 0:00:12] [#]} 26. Rd3 $3 {[%emt 0:09:14]} Qxd3 {[%emt 0:00:26]} 27. Nc7 {[%emt 0:03:21] White threatens Ne8+ and mate.} Rh6 {[%emt 0:01:26]} 28. Kg2 {[%emt 0:01:40]} Kg8 {[%emt 0:08:50]} 29. Ne8 $2 {[%emt 0:01:50]} (29. Re1 {aiming for Ne6.} g4 30. Re3) 29... Qxc4 $2 {[%emt 0:01:34]} (29... Qd4 30. Nc7 Qe5 31. Qxe5 (31. Qxc5 Qxe4+ 32. f3 Qc2+ 33. Rf2 Qc1 $11) 31... Nxe5) 30. Nf6+ {[%emt 0:00:40]} ({Inferior is} 30. Rh1 Rxh1 31. Nf6+ Kg7 32. Ne8+ Kg8 33. Nf6+ Kg7 34. Ne8+ Kg8 $11) (30. Nc7 $142) 30... Kg7 $2 {[%emt 0:00:19]} (30... Rxf6 $18 31. Qxf6 Qxe4+ 32. Kg1 h5) 31. Ng4 {[%emt 0:00:31]} (31. Nd7 $142 Qxe4+ 32. Qxe4 Rd6 33. Nxc5 Rd8 34. Ne6+ Kf6 35. Nxd8 Nxd8 36. Re1) 31... Rg6 {[%emt 0:01:52] [#]} 32. Qxf7+ $3 {[%emt 0:00:17][%mdl 512] Weighted Error Value: White=0.23 (precise) /Black=0.44} 1-0

[Event "Club Ajedrez Silla 60 Years 2022"]
[Site "Silla"]
[Date "2022.05.12"]
[Round "8.3"]
[White "Granero Roca, Antonio"]
[Black "Ilinca Ilinca, Felix Antonio"]
[Result "0-1"]
[ECO "A09"]
[WhiteElo "2340"]
[BlackElo "2165"]
[Annotator "TA"]
[PlyCount "116"]
[EventDate "2022.05.09"]
[EventType "tourn"]
[EventCountry "ESP"]
[SourceTitle "playchess.com"]
[Source "ChessBase"]
[SourceQuality "1"]
[TimeControl "5400+30"]

{[%evp 11,116,-18,-16,-36,-17,-57,-47,-62,-45,-52,-50,-37,-43,-45,-50,-44,-29,-35,-48,-12,-24,-23,-20,-24,-41,-52,-36,-59,-22,-71,-54,-74,-15,-58,-21,-85,-49,-82,-68,-68,-70,-75,-77,-77,-55,-206,-214,-272,-278,-427,-66,-67,-72,-61,-61,-69,-56,-73,-63,-162,-167,-168,-164,-148,-141,-283,-108,-108,-106,-1149,-229,-264,0,-1351,-1353,-1198,-1107,-6089,-5247,-2130,-1995,-29984,-363,-359,-352,-353,-368,-341,-344,-12838,-12839,-12839,-12839,-12840,-12837,-12837,-12837,-12839,-12837,-12840,-449,-12841,-12841,-12842,-12842,-12843,-12843]} 1. Nf3 {[%emt 0:00:05]} c5 {[%emt 0:00:21]} 2. g3 {[%emt 0:00:37]} Nc6 {[%emt 0:00:35]} 3. Bg2 {[%emt 0:00:40]} e5 {[%emt 0:01:12]} 4. d3 {[%emt 0:00:17]} d5 {[%emt 0:00:50]} 5. O-O {[%emt 0:00:20]} Be7 {[%emt 0:00:33]} 6. c4 {[%emt 0:00:20]} d4 {[%emt 0:01:31]} 7. Na3 {[%emt 0:01:16] A09: Réti Opening: 1 Nf3 d5 2 c4.} Nf6 {[%emt 0:01:24]} 8. Bg5 {[%emt 0:00:26]} O-O {[%emt 0:01:42]} 9. Nc2 {[%emt 0:01:25] Black is slightly better.} Be6 {[%emt 0:02:14]} 10. a3 {[%emt 0:02:07][%cal Ob2b4]} a5 {[%emt 0:02:09]} 11. Rb1 {[%emt 0:01:32]} a4 {[%emt 0:03:10]} 12. b4 {[%emt 0:01:08]} axb3 {[%emt 0:01:14]} 13. Rxb3 {[%emt 0:00:12]} Qc7 {[%emt 0:04:27]} 14. Nd2 {[%emt 0:01:45]} h6 {[%emt 0:06:16]} 15. Bxf6 {[%emt 0:01:50]} Bxf6 {[%emt 0:00:08]} 16. e3 {[%emt 0:01:33] [#]} Be7 $146 {[%emt 0:10:46]} ({Predecessor:} 16... Rfb8 17. exd4 Nxd4 18. Nxd4 cxd4 19. Qb1 Be7 20. Qb2 Ra7 21. Ra1 Bd7 22. Qb1 Ba4 23. Rb2 Bd7 24. Rb3 Ba4 25. Rb2 Bd7 {½-½ (27) Petrosian,T-Flohr,S Moscow 1955}) 17. exd4 {[%emt 0:02:43]} exd4 {[%emt 0:02:39]} 18. f4 {[%emt 0:03:29]} g6 {[%emt 0:03:59] Against Qh5} 19. Re1 {[%emt 0:02:44][%cal Oe1e6]} Rfe8 {[%emt 0:04:32]} 20. Ne4 {[%emt 0:08:02]} (20. Rxe6 $11 {feels stronger.} fxe6 21. Qg4) 20... b6 $17 {[%emt 0:04:00]} 21. Qf3 {[%emt 0:01:54][%cal Oe4f6]} Na5 {[%emt 0:03:55]} (21... Bd7 $17) 22. Rb2 {[%emt 0:02:13]} Rab8 {[%emt 0:04:21]} 23. Nf2 {[%emt 0:02:29]} (23. g4 $11) 23... Bf6 {[%emt 0:04:29]} 24. h4 {[%emt 0:05:45]} h5 {[%emt 0:01:34]} 25. Ne4 {[%emt 0:00:58]} Bg7 {[%emt 0:00:42][%cal Oa5c4] And now ...Nxc4! would win.} 26. Rbb1 {[%emt 0:00:57]} Bf5 {[%emt 0:02:01]} 27. Kh2 {[%emt 0:02:31]} Qd7 {[%emt 0:00:42]} 28. Rb5 $2 {[%emt 0:01:52] [#]} (28. Qf2 $15) 28... Nxc4 $1 $19 {[%emt 0:03:47][%mdl 512]} 29. dxc4 {[%emt 0:05:00]} (29. a4 Bxe4) 29... d3 {[%emt 0:00:39] Hoping for ...Bxe4.} 30. Nxc5 {[%emt 0:00:50] [#]} (30. Qf2 $142) 30... dxc2 $1 {[%emt 0:04:05]} 31. Nxd7 $15 {[%emt 0:05:30]} Rxe1 {[%emt 0:00:11]} 32. Rxf5 {[%emt 0:00:57]} gxf5 {[%emt 0:00:55] Really sharp!} 33. Nxb8 {[%emt 0:00:43]} c1=Q {[%emt 0:01:37]} 34. Qxh5 {[%emt 0:02:44]} Qc2 {[%emt 0:00:56]} (34... Qxa3 35. Bd5 Qb2+ 36. Kh3 $11) 35. Nd7 {[%emt 0:01:01] [#]} (35. Kh3 $1 $15) 35... Re2 $1 $19 {[%emt 0:01:33][%mdl 1024] Black has strong compensation.} ({Inferior is} 35... Qf2 36. Ne5 Bxe5 37. fxe5 $11) 36. Qf3 {[%emt 0:00:25] [#]} Qe4 $1 {[%emt 0:01:17]} ({And not} 36... Qxc4 37. Nxb6 Qe4 38. Kh3 $17) 37. Kh3 {[%emt 0:02:00]} Bd4 {[%emt 0:01:47] Threatens to win with ...Re3.} ({Don't take} 37... Qxc4 38. Bf1 Qe6 39. Bxe2 $16) 38. a4 {[%emt 0:01:06]} (38. Qf1 $17 {only move.} Qe3 39. Qd1) 38... Kg7 $2 {[%emt 0:02:35]} (38... Re3 $19 {and Black stays clearly on top.} 39. Qf1 Qe6) 39. Qf1 $17 {[%emt 0:02:50]} Qd3 $40 {[%emt 0:02:30][%mdl 128] Strongly threatening ...f6. Black wants a kill. Black is more active.} 40. h5 $2 {[%emt 0:04:55][%mdl 8192]} (40. Ne5 $17 Qc2 41. Nf3) 40... Bf2 $2 {[%emt 0:01:30]} (40... f6 {( -> ...Bf2)} 41. Qf3 Re3) 41. Qa1+ $19 {[%emt 0:00:52]} Bd4 $2 {[%emt 0:04:58]} (41... Kh7 42. Nf6+ Kh8 43. Nd7+ Kh7 44. Nf6+ Kh8 45. Nd7+ Kg8 46. Nf6+ Kh8) 42. Qf1 {[%emt 0:00:37]} f6 {[%emt 0:02:18] Inhibits Ne5.} 43. Qf3 {[%emt 0:05:04]} Re3 {[%emt 0:01:29][%mdl 64] Skewer, Deflection} 44. Qa8 {[%emt 0:00:11]} Rxg3+ {[%emt 0:01:24]} 45. Kh2 {[%emt 0:00:10]} Rg4 {[%emt 0:03:05]} 46. Qf3 {[%emt 0:06:00]} Qxf3 $2 {[%emt 0:00:59]} (46... Be3 {mates} 47. Ne5 fxe5 48. Qb7+ Kh6 49. Qc6+ Kh7 50. Qb7+ Rg7 51. Qf3 Bxf4+ 52. Kh1 Qd2 53. h6 Rg6 54. Qb7+ Kxh6 55. Qf3 Rg3 56. Kg1 Rxf3 57. Bxf3 Be3+ 58. Kh1 Qf2 59. Bg2 Qg1#) 47. Bxf3 {[%emt 0:00:17]} Rxf4 {[%emt 0:00:08][%mdl 4096] Endgame KRB-KBN} 48. Kg2 {[%emt 0:00:31]} Kh6 {[%emt 0:00:47]} 49. Kg3 {[%emt 0:05:21]} Be5 {[%emt 0:01:22]} 50. Nxb6 $2 {[%emt 0:00:31]} (50. Bd5) 50... Rxc4+ {[%emt 0:00:48] Black is clearly winning.} 51. Kg2 {[%emt 0:01:00]} Rc2+ {[%emt 0:00:28]} 52. Kh1 {[%emt 0:00:11]} Rh2+ {[%emt 0:00:23]} 53. Kg1 {[%emt 0:00:10]} Ra2 {[%emt 0:00:10]} 54. Kh1 {[%emt 0:00:48]} Kg5 {[%emt 0:00:46]} 55. Bc6 {[%emt 0:00:29]} Rh2+ {[%emt 0:00:24]} 56. Kg1 {[%emt 0:00:06]} Rc2 {[%emt 0:00:05]} 57. h6 {[%emt 0:04:31]} Kxh6 {[%emt 0:00:16]} 58. Bd7 {[%emt 0:01:27]} Bd4+ {[%emt 0:00:10] Weighted Error Value: White=0.73/Black=0.49} 0-1

[Event "Club Ajedrez Silla 60 Years 2022"]
[Site "Silla"]
[Date "2022.05.13"]
[Round "9.1"]
[White "Granero Roca, Antonio"]
[Black "Kotronias, Vasilios"]
[Result "1/2-1/2"]
[ECO "C92"]
[WhiteElo "2340"]
[BlackElo "2465"]
[Annotator "TA"]
[PlyCount "29"]
[EventDate "2022.05.09"]
[EventType "tourn"]
[EventCountry "ESP"]
[SourceTitle "playchess.com"]
[Source "ChessBase"]
[SourceQuality "1"]
[TimeControl "5400+30"]

{[%evp 17,29,21,26,-1,20,27,22,0,26,0,28,0,23,0]} 1. e4 {[%emt 0:00:09]} e5 {[%emt 0:00:04]} 2. Nf3 {[%emt 0:00:06]} Nc6 {[%emt 0:00:04]} 3. Bb5 {[%emt 1:31:45][%cal Bf1b5,Bb5a4,Ba4b3][%mdl 32]} a6 {[%emt 0:00:06]} 4. Ba4 {[%emt 0:00:00]} Nf6 {[%emt 0:00:05]} 5. O-O {[%emt 0:00:00]} Be7 {[%emt 0:00:05]} 6. Re1 {[%emt 0:00:00]} b5 {[%emt 0:00:05]} 7. Bb3 {[%emt 0:00:00]} O-O {[%emt 0:00:08]} 8. c3 {[%emt 0:00:00]} d6 {[%emt 0:00:06]} 9. h3 {[%emt 0:00:00]} Bb7 {[%emt 0:00:05]} 10. a4 {[%emt 0:00:00] C92: Closed Ruy Lopez: 9...Be6, Karpov and Flohr-Zaitsev Variations.} Re8 {[%emt 0:00:10]} (10... Na5 $5 {[%cal Ra5b3]}) 11. Ng5 {[%emt 0:00:00]} Rf8 {[%emt 0:00:05] [#]} 12. Nf3 $146 {[%emt 0:00:00]} ({Predecessor:} 12. d4 h6 13. Nf3 Re8 14. Nbd2 Bf8 15. d5 Ne7 16. Qe2 c6 17. dxc6 Bxc6 18. axb5 axb5 19. Rxa8 Qxa8 20. Bc2 Ng6 21. g3 Qc8 22. Kh2 Bd7 23. Ng1 Nh7 {0-1 (73) Janik,M (1853)-Koziol,P (1883) Warsaw 2013}) 12... Re8 {[%emt 0:00:08]} 13. Ng5 {[%emt 0:05:00]} Rf8 {[%emt 1:35:49]} 14. Nf3 {[%emt 0:00:00]} Re8 {[%emt 0:00:00]} 15. Ng5 {[%emt 0:01:00] An uneventful encounter.  Weighted Error Value: White=0.19 (very precise) /Black=0.03 (flawless)} 1/2-1/2

[Event "Club Ajedrez Silla 60 Years 2022"]
[Site "Silla"]
[Date "2022.05.13"]
[Round "9.2"]
[White "Ilinca Ilinca, Felix Antonio"]
[Black "Krasteva, Beloslava"]
[Result "1-0"]
[ECO "E14"]
[WhiteElo "2165"]
[BlackElo "2268"]
[Annotator "TA"]
[PlyCount "85"]
[EventDate "2022.05.09"]
[EventType "tourn"]
[EventCountry "ESP"]
[SourceTitle "playchess.com"]
[Source "ChessBase"]
[SourceQuality "1"]
[TimeControl "5400+30"]

{[%evp 15,85,0,4,0,12,14,12,0,8,-15,-9,-10,-9,-10,-8,-63,-62,-70,-58,-60,-48,-50,-25,-45,-20,-19,-19,-21,-20,-28,-14,-40,143,143,269,257,302,303,391,234,251,154,135,14,9,23,244,228,233,58,207,183,212,0,0,0,575,602,594,589,593,585,2100,676,628,0,802,801,772,772,954,671]} 1. c4 {[%emt 0:00:10]} e6 {[%emt 0:02:42]} 2. Nc3 {[%emt 0:00:32]} d5 {[%emt 0:00:36]} 3. d4 {[%emt 0:00:55]} Be7 {[%emt 0:02:50]} 4. Nf3 {[%emt 0:01:53]} Nf6 {[%emt 0:00:07]} 5. e3 {[%emt 0:01:01]} O-O {[%emt 0:00:21]} 6. Be2 {[%emt 0:01:18]} b6 {[%emt 0:00:27]} 7. cxd5 {[%emt 0:01:57]} exd5 {[%emt 0:00:07]} 8. O-O {[%emt 0:00:18]} Bb7 {[%emt 0:00:18]} 9. b3 {[%emt 0:02:17] E14: Queen's Indian: Classical Variation (4 e3).} Nbd7 {[%emt 0:00:06]} 10. Bb2 {[%emt 0:01:00]} a6 {[%emt 0:00:37]} 11. Rc1 {[%emt 0:01:41] The position is equal.} Bd6 {[%emt 0:00:42]} 12. Bd3 {[%emt 0:01:23]} Qe7 {[%emt 0:00:51] 12...Ne4 injects fresh life into this line.} 13. Qe2 {[%emt 0:01:46]} Ne4 {[%emt 0:00:24]} 14. Rfd1 {[%emt 0:06:06]} f5 {[%emt 0:00:44] [#]} 15. Nd2 $146 {[%emt 0:09:45]} (15. Rc2 $11) ({Predecessor:} 15. Rc2 Rf6 16. g3 b5 17. Qf1 Rh6 18. a4 b4 19. Ne2 Ndf6 20. h3 Rf8 21. Ne5 c5 22. Nf3 Nd7 23. Qg2 cxd4 24. Nexd4 {½-½ (23) Kustar,S (2373)-Gonda,L (2449) Hungary 2004}) 15... Rf6 $15 {[%emt 0:01:52][%cal Od6h2] And now ...Bxh2+! would win.} 16. Nf1 {[%emt 0:02:57]} Rh6 {[%emt 0:05:04][%cal Od6h2]} 17. g3 {[%emt 0:02:39]} Qf7 {[%emt 0:21:23]} 18. f3 {[%emt 0:05:06]} Nxc3 {[%emt 0:02:29]} 19. Bxc3 {[%emt 0:00:30]} b5 {[%emt 0:02:33]} 20. Bb2 {[%emt 0:06:53]} Re8 {[%emt 0:09:42][%cal Of5f4]} 21. Qc2 {[%emt 0:06:51]} Rf6 {[%emt 0:02:00]} 22. Re1 {[%emt 0:04:05]} Qh5 {[%emt 0:00:43]} 23. Kg2 {[%emt 0:03:42]} c5 $2 {[%emt 0:06:48]} (23... Rf7 $15 {keeps the upper hand.}) 24. dxc5 $16 {[%emt 0:02:14]} Nxc5 {[%emt 0:09:09]} (24... Ne5 $16 {was worth a try.} 25. Be2 (25. cxd6 $2 Qxf3+ 26. Kg1 d4 $19) 25... d4 26. Bxd4 (26. cxd6 d3 $16) 26... Rh6) 25. Bxf6 $18 {[%emt 0:10:41] Bd4 is the strong threat.} d4 {[%emt 0:00:04] [#]} 26. Nd2 {[%emt 0:11:05]} Rxe3 {[%emt 0:05:44] [#]} (26... dxe3 27. Bd4) 27. Rxe3 {[%emt 0:01:38]} (27. Bxd4 $2 Rxd3 28. Bxc5 Rxd2+ $1 {[%mdl 512]} 29. Qxd2 Qxf3+ 30. Kg1 Bxc5+ 31. Rxc5 Qh1+ 32. Kf2 Qxh2+ 33. Ke3 Qxg3+ 34. Kd4 Qd6+ 35. Rd5 Qxd5+ 36. Kc3 b4+ 37. Kc2 Qc5+ 38. Kd3 h6 $19) (27. Bc4+ $142 $1 Kf8 (27... Kh8 28. Rxe3) 28. Rxe3 (28. Bxd4 Rxf3 29. Nxf3 Qxf3+ 30. Kg1 Qh1+ 31. Kf2 Qg2+ 32. Ke3 f4+ 33. gxf4 Bxf4+ 34. Kxf4 Qf3+ 35. Kg5 Ne4+) 28... dxe3 29. Bxg7+ $1 {[%mdl 512]} Kxg7 30. Qc3+ Kf8 31. Re1 (31. Qxe3 bxc4 32. Rxc4 f4 $18)) 27... dxe3 {[%emt 0:00:05] [#]} 28. Be2 $1 {[%emt 0:00:44]} gxf6 {[%emt 0:04:04] [#]} 29. Nf1 {[%emt 0:04:05]} (29. Nc4 $1 $16 {[%cal Rc4d6][%mdl 512]} bxc4 30. Qxc4+ Kg7 31. Rd1) 29... f4 $36 {[%emt 0:01:57][%mdl 2048] Black has the initiative.} 30. Rd1 {[%emt 0:01:28]} Qe5 {[%emt 0:02:47]} (30... Bf8 $1 $11) 31. gxf4 $1 $18 {[%emt 0:03:24]} Qxf4 {[%emt 0:00:58]} 32. Qc3 $2 {[%emt 0:00:58]} ({Inferior is} 32. Rxd6 Qxd6 33. Nxe3 Ne6 $11) (32. Ng3 $1 $18) 32... Qg5+ {[%emt 0:14:15]} (32... Ne6 $1 $14 33. Qxe3 Qg4+ 34. Ng3 (34. Kf2 Qh4+ 35. Kg2 Nf4+ 36. Kh1 Qh3 $17) 34... Bc5 35. Rd8+ Nxd8 36. Qxc5 Qd7) 33. Ng3 $1 {[%emt 0:00:20]} Bc7 {[%emt 0:03:21] [#]} 34. b4 $2 {[%emt 0:01:09]} (34. Qc2 $1 $18 {Strongly threatening b4.} Bc8 35. Kh1) 34... Ne6 $11 {[%emt 0:00:05]} 35. Rd7 {[%emt 0:01:49] Dancing on a razor blade.} Nf4+ $2 {[%emt 0:01:26][%mdl 8192]} (35... Bxg3 $11 {and Black has nothing to worry.} 36. hxg3 Nf4+ 37. Kf1 Qxg3 38. Rd8+ Kg7 39. Qxe3 (39. Rd7+ $2 Kh6 $19) 39... Qh3+ 40. Kf2 Qh2+ 41. Kf1 Qh1+ 42. Kf2 Qh4+ 43. Kf1 Qh3+ 44. Kf2 Qh4+ 45. Kf1 Qh1+ 46. Kf2 Qh4+) 36. Kf1 $18 {[%emt 0:01:11]} Nd5 {[%emt 0:00:36] [#]} 37. Rxd5 {[%emt 0:00:40][%mdl 512]} Bxd5 {[%emt 0:00:29]} (37... Qxd5 38. Qxc7) 38. Qxc7 {[%emt 0:00:16] Threatens to win with f4.} h5 {[%emt 0:00:29]} 39. Qd8+ {[%emt 0:00:44]} (39. f4 $142 Qh6 40. Qd8+ Qf8 41. Qxd5+ Qf7 {[#]} 42. Nxh5 $1) 39... Kg7 {[%emt 0:00:28]} 40. Qc7+ $2 {[%emt 0:00:38]} (40. Qe7+ $18 Bf7 41. Bd3) 40... Bf7 $2 {[%emt 0:00:27][%mdl 8192]} (40... Kg8 $11 41. f4 Qh6 42. Qd8+ Qf8 43. Qxd5+ Qf7 44. Nxh5 Kf8 45. Qd8+ Qe8 46. Qxf6+ Qf7 47. Qd8+ Qe8 48. Qd6+ Qe7 49. Qxa6 Kf7 50. Qxb5 Qd6 51. Qf5+ Ke7 52. Qg5+ Kf8 53. Qg7+ Ke8 54. Nf6+ Kd8 55. Qg8+ Kc7 56. Ne8+ Kd7 57. Nxd6 Kxd6 58. Qd8+ Ke6 59. Bc4+ Kf5 60. Qg5+ Ke4 61. Qe5+ Kf3 62. Be2#) 41. f4 {[%emt 0:00:25] White is clearly winning.} Qd5 {[%emt 0:00:35]} 42. Bxh5 {[%emt 0:00:50] aiming for Qxf7+.} e2+ {[%emt 0:00:32]} 43. Bxe2 {[%emt 0:00:09] Weighted Error Value: White=0.56/Black=0.60} 1-0